[Event "IV Elllobregat Open Chess Tmnt"]
[Site "Sant Boi de Llobregat, Spain"]
[Date "2023.11.30"]
[Round "1.1"]
[White "Palczert, Matyas"]
[Black "Fedoseev, Vladimir"]
[Result "0-1"]
[TimeControl "90min/40moves + 15min/end + 30sec from move 1"]
[WhiteFideId "784958"]
[BlackFideId "24130737"]
[WhiteElo "2349"]
[BlackElo "2675"]

1. e4 {[%clk 01:30:49]} {[%emt 00:00:10]} e5 {[%clk 01:30:54]} {[%emt
00:00:06]} 2. Nf3 {[%clk 01:30:44]} {[%emt 00:00:35]} Nf6 {[%clk 01:31:16]}
{[%emt 00:00:08]} 3. Nxe5 {[%clk 01:29:06]} {[%emt 00:02:09]} d6 {[%clk
01:31:39]} {[%emt 00:00:06]} 4. Nf3 {[%clk 01:29:24]} {[%emt 00:00:12]} Nxe4
{[%clk 01:32:02]} {[%emt 00:00:07]} 5. d3 {[%clk 01:27:19]} {[%emt 00:02:36]}
Nf6 {[%clk 01:32:13]} {[%emt 00:00:19]} 6. d4 {[%clk 01:27:41]} {[%emt
00:00:09]} g6 {[%clk 01:31:48]} {[%emt 00:00:54]} 7. Bd3 {[%clk 01:26:47]}
{[%emt 00:01:24]} Bg7 {[%clk 01:32:11]} {[%emt 00:00:07]} 8. Qe2+ {[%clk
01:14:47]} {[%emt 00:12:31]} Kd7 {[%clk 01:32:40]} {[%emt 00:00:01]} 9. O-O
{[%clk 01:15:05]} {[%emt 00:00:11]} Re8 {[%clk 01:33:07]} {[%emt 00:00:04]} 10.
Be3 {[%clk 01:13:12]} {[%emt 00:02:23]} Ke7 {[%clk 01:33:01]} {[%emt 00:00:36]}
11. Nc3 {[%clk 01:06:44]} {[%emt 00:06:57]} Kf8 {[%clk 01:33:19]} {[%emt
00:00:11]} 12. h3 {[%clk 01:02:03]} {[%emt 00:05:12]} a6 {[%clk 01:29:45]}
{[%emt 00:04:04]} 13. Qd2 {[%clk 00:53:16]} {[%emt 00:09:18]} b5 {[%clk
01:23:52]} {[%emt 00:06:22]} 14. Rfe1 {[%clk 00:49:28]} {[%emt 00:04:17]} Bb7
{[%clk 01:21:05]} {[%emt 00:03:16]} 15. Nh2 {[%clk 00:47:05]} {[%emt 00:02:54]}
Nc6 {[%clk 01:17:46]} {[%emt 00:03:50]} 16. a4 {[%clk 00:41:02]} {[%emt
00:06:33]} b4 {[%clk 01:10:41]} {[%emt 00:07:34]} 17. Ne2 {[%clk 00:41:12]}
{[%emt 00:00:20]} Kg8 {[%clk 01:08:18]} {[%emt 00:02:52]} 18. Bh6 {[%clk
00:37:36]} {[%emt 00:04:06]} Bh8 {[%clk 01:06:51]} {[%emt 00:01:56]} 19. Nf3
{[%clk 00:33:30]} {[%emt 00:04:36]} Qd7 {[%clk 00:59:52]} {[%emt 00:07:30]} 20.
Qf4 {[%clk 00:27:26]} {[%emt 00:06:34]} Nd8 {[%clk 00:57:13]} {[%emt 00:03:09]}
21. Ng5 {[%clk 00:20:36]} {[%emt 00:07:20]} Ne6 {[%clk 00:51:15]} {[%emt
00:06:27]} 22. Nxe6 {[%clk 00:15:34]} {[%emt 00:05:33]} Rxe6 {[%clk 00:47:41]}
{[%emt 00:04:04]} 23. Qd2 {[%clk 00:14:43]} {[%emt 00:01:21]} a5 {[%clk
00:41:16]} {[%emt 00:06:55]} 24. Nf4 {[%clk 00:12:01]} {[%emt 00:03:12]} Rxe1+
{[%clk 00:38:15]} {[%emt 00:03:32]} 25. Rxe1 {[%clk 00:12:24]} {[%emt
00:00:07]} Qxa4 {[%clk 00:36:20]} {[%emt 00:02:25]} 26. Re7 {[%clk 00:12:28]}
{[%emt 00:00:25]} Nd5 {[%clk 00:22:07]} {[%emt 00:14:43]} 27. Nxd5 {[%clk
00:10:25]} {[%emt 00:02:33]} Bxd5 {[%clk 00:22:32]} {[%emt 00:00:05]} 28. Qe2
{[%clk 00:08:40]} {[%emt 00:02:15]} Bg7 {[%clk 00:20:05]} {[%emt 00:02:57]} 29.
Be4 {[%clk 00:08:23]} {[%emt 00:00:48]} Bxe4 {[%clk 00:18:28]} {[%emt
00:02:08]} 30. Qxe4 {[%clk 00:08:44]} {[%emt 00:00:08]} Rf8 {[%clk 00:18:47]}
{[%emt 00:00:11]} 31. Bxg7 {[%clk 00:08:55]} {[%emt 00:00:19]} Kxg7 {[%clk
00:19:15]} {[%emt 00:00:03]} 32. b3 {[%clk 00:08:37]} {[%emt 00:00:48]} Qa1+
{[%clk 00:19:35]} {[%emt 00:00:09]} 33. Kh2 {[%clk 00:08:59]} {[%emt 00:00:07]}
c5 {[%clk 00:17:42]} {[%emt 00:02:24]} 34. dxc5 {[%clk 00:06:57]} {[%emt
00:02:32]} dxc5 {[%clk 00:18:10]} {[%emt 00:00:02]} 35. Ra7 {[%clk 00:06:57]}
{[%emt 00:00:30]} Rd8 {[%clk 00:16:28]} {[%emt 00:02:12]} 36. Qe7 {[%clk
00:06:39]} {[%emt 00:00:47]} Qf6 {[%clk 00:16:51]} {[%emt 00:00:07]} 37. Qxf6+
{[%clk 00:02:48]} {[%emt 00:04:20]} Kxf6 {[%clk 00:17:20]} {[%emt 00:00:01]} 38.
Rxa5 {[%clk 00:03:01]} {[%emt 00:00:18]} Rd5 {[%clk 00:17:11]} {[%emt
00:00:39]} 39. g4 {[%clk 00:00:40]} {[%emt 00:02:51]} Ke5 {[%clk 00:17:32]}
{[%emt 00:00:08]} 40. Ra7 {[%clk 00:15:32]} {[%emt 00:00:39]} Kd4 {[%clk
00:29:42]} {[%emt 00:03:20]} 41. Rxf7 {[%clk 00:15:02]} {[%emt 00:01:00]} Kc3
{[%clk 00:30:09]} {[%emt 00:00:03]} 42. Rxh7 {[%clk 00:12:38]} {[%emt
00:02:54]} Kxc2 {[%clk 00:30:36]} {[%emt 00:00:03]} 43. h4 {[%clk 00:08:16]}
{[%emt 00:04:52]} Kxb3 {[%clk 00:30:50]} {[%emt 00:00:16]} 44. h5 {[%clk
00:05:13]} {[%emt 00:03:33]} gxh5 {[%clk 00:31:15]} {[%emt 00:00:06]} 45. Rxh5
{[%clk 00:05:10]} {[%emt 00:00:33]} Kc4 {[%clk 00:31:43]} {[%emt 00:00:02]} 46.
Kg3 {[%clk 00:03:22]} {[%emt 00:02:17]} b3 {[%clk 00:32:01]} {[%emt 00:00:12]}
47. Rh1 {[%clk 00:02:26]} {[%emt 00:01:26]} b2 {[%clk 00:32:27]} {[%emt
00:00:05]} 48. f4 {[%clk 00:02:44]} {[%emt 00:00:11]} Kb3 {[%clk 00:32:32]}
{[%emt 00:00:26]} 49. g5 {[%clk 00:02:22]} {[%emt 00:00:52]} c4 {[%clk
00:32:18]} {[%emt 00:00:44]} 50. g6 {[%clk 00:02:45]} {[%emt 00:00:08]} c3
{[%clk 00:32:04]} {[%emt 00:00:43]} 51. g7 {[%clk 00:02:21]} {[%emt 00:00:54]}
Rd8 {[%clk 00:32:30]} {[%emt 00:00:04]} 0-1

[Event "IV Elllobregat Open Chess Tmnt"]
[Site "Sant Boi de Llobregat, Spain"]
[Date "2023.11.30"]
[Round "1.2"]
[White "Alekseenko, Kirill"]
[Black "Lacasa Diaz, Jose Antonio"]
[Result "1-0"]
[TimeControl "90min/40moves + 15min/end + 30sec from move 1"]
[WhiteFideId "4135539"]
[BlackFideId "2203375"]
[WhiteElo "2670"]
[BlackElo "2352"]

1. e4 {[%clk 01:30:52]} {[%emt 00:00:07]} c5 {[%clk 01:30:47]} {[%emt
00:00:14]} 2. Nf3 {[%clk 01:31:13]} {[%emt 00:00:09]} d6 {[%clk 01:31:02]}
{[%emt 00:00:15]} 3. d4 {[%clk 01:31:08]} {[%emt 00:00:35]} cxd4 {[%clk
01:31:21]} {[%emt 00:00:11]} 4. Nxd4 {[%clk 01:31:29]} {[%emt 00:00:08]} Nf6
{[%clk 01:31:42]} {[%emt 00:00:10]} 5. Nc3 {[%clk 01:31:37]} {[%emt 00:00:22]}
g6 {[%clk 01:31:48]} {[%emt 00:00:24]} 6. Be3 {[%clk 01:31:13]} {[%emt
00:00:53]} Nc6 {[%clk 01:30:48]} {[%emt 00:01:29]} 7. f3 {[%clk 01:31:07]}
{[%emt 00:00:37]} Bg7 {[%clk 01:31:06]} {[%emt 00:00:12]} 8. Qd2 {[%clk
01:31:25]} {[%emt 00:00:12]} O-O {[%clk 01:31:18]} {[%emt 00:00:18]} 9. O-O-O
{[%clk 01:31:19]} {[%emt 00:00:36]} d5 {[%clk 01:30:55]} {[%emt 00:00:53]} 10.
exd5 {[%clk 01:30:38]} {[%emt 00:01:11]} Nxd5 {[%clk 01:31:12]} {[%emt
00:00:13]} 11. Nxc6 {[%clk 01:30:37]} {[%emt 00:00:32]} bxc6 {[%clk 01:31:35]}
{[%emt 00:00:07]} 12. Bd4 {[%clk 01:31:02]} {[%emt 00:00:05]} e5 {[%clk
01:26:15]} {[%emt 00:05:51]} 13. Bc5 {[%clk 01:31:23]} {[%emt 00:00:09]} Re8
{[%clk 01:26:37]} {[%emt 00:00:07]} 14. Ne4 {[%clk 01:31:40]} {[%emt 00:00:13]}
Qc7 {[%clk 01:26:34]} {[%emt 00:00:34]} 15. g4 {[%clk 01:29:09]} {[%emt
00:03:00]} Be6 {[%clk 01:22:47]} {[%emt 00:04:17]} 16. Bc4 {[%clk 01:29:24]}
{[%emt 00:00:15]} Red8 {[%clk 01:18:24]} {[%emt 00:04:53]} 17. Qe1 {[%clk
01:10:14]} {[%emt 00:19:40]} Nf4 {[%clk 01:17:17]} {[%emt 00:01:36]} 18. Bd6
{[%clk 01:09:06]} {[%emt 00:01:39]} Qb6 {[%clk 01:16:00]} {[%emt 00:01:48]} 19.
Bxe6 {[%clk 01:06:22]} {[%emt 00:03:13]} Nxe6 {[%clk 01:15:33]} {[%emt
00:00:57]} 20. Kb1 {[%clk 00:54:37]} {[%emt 00:12:15]} Nd4 {[%clk 00:37:48]}
{[%emt 00:38:15]} 21. c3 {[%clk 00:51:27]} {[%emt 00:03:40]} Nb5 {[%clk
00:32:35]} {[%emt 00:05:42]} 22. Be7 {[%clk 00:48:48]} {[%emt 00:03:09]} Rxd1+
{[%clk 00:30:17]} {[%emt 00:02:48]} 23. Qxd1 {[%clk 00:49:13]} {[%emt
00:00:05]} Rb8 {[%clk 00:28:12]} {[%emt 00:02:36]} 24. Qd2 {[%clk 00:40:29]}
{[%emt 00:09:14]} f5 {[%clk 00:24:37]} {[%emt 00:04:05]} 25. gxf5 {[%clk
00:40:22]} {[%emt 00:00:37]} gxf5 {[%clk 00:25:01]} {[%emt 00:00:05]} 26. Nf6+
{[%clk 00:39:28]} {[%emt 00:01:24]} Kh8 {[%clk 00:22:35]} {[%emt 00:02:56]} 27.
Nd7 {[%clk 00:38:39]} {[%emt 00:01:19]} Rd8 {[%clk 00:21:25]} {[%emt 00:01:39]}
28. Bxd8 {[%clk 00:38:23]} {[%emt 00:00:46]} Qxd8 {[%clk 00:21:49]} {[%emt
00:00:07]} 29. a4 {[%clk 00:37:47]} {[%emt 00:01:07]} 1-0

[Event "IV Elllobregat Open Chess Tmnt"]
[Site "Sant Boi de Llobregat, Spain"]
[Date "2023.11.30"]
[Round "1.3"]
[White "Jerez Perez, Alfonso"]
[Black "Narayanan, SL"]
[Result "0-1"]
[TimeControl "90min/40moves + 15min/end + 30sec from move 1"]
[WhiteFideId "2204100"]
[BlackFideId "5058422"]
[WhiteElo "2350"]
[BlackElo "2668"]

1. e4 {[%clk 01:30:53]} {[%emt 00:00:06]} c5 {[%clk 01:30:51]} {[%emt
00:00:09]} 2. c3 {[%clk 01:31:11]} {[%emt 00:00:12]} d5 {[%clk 01:31:07]}
{[%emt 00:00:14]} 3. exd5 {[%clk 01:31:22]} {[%emt 00:00:19]} Qxd5 {[%clk
01:31:32]} {[%emt 00:00:05]} 4. d4 {[%clk 01:31:43]} {[%emt 00:00:09]} Nf6
{[%clk 01:31:47]} {[%emt 00:00:13]} 5. Nf3 {[%clk 01:32:00]} {[%emt 00:00:14]}
e6 {[%clk 01:31:47]} {[%emt 00:00:30]} 6. Na3 {[%clk 01:30:24]} {[%emt
00:02:07]} Nc6 {[%clk 01:31:40]} {[%emt 00:00:37]} 7. Nb5 {[%clk 01:29:26]}
{[%emt 00:01:28]} Qd8 {[%clk 01:31:58]} {[%emt 00:00:11]} 8. dxc5 {[%clk
01:29:46]} {[%emt 00:00:11]} Bxc5 {[%clk 01:30:49]} {[%emt 00:01:38]} 9. Qxd8+
{[%clk 01:25:49]} {[%emt 00:04:26]} Kxd8 {[%clk 01:31:14]} {[%emt 00:00:05]} 10.
Bg5 {[%clk 01:20:06]} {[%emt 00:06:13]} Ke7 {[%clk 01:27:49]} {[%emt 00:03:55]}
11. Rd1 {[%clk 01:18:18]} {[%emt 00:02:19]} a6 {[%clk 01:26:25]} {[%emt
00:01:54]} 12. Nbd4 {[%clk 01:16:26]} {[%emt 00:02:21]} Nxd4 {[%clk 01:26:27]}
{[%emt 00:00:28]} 13. Nxd4 {[%clk 01:16:49]} {[%emt 00:00:07]} Rd8 {[%clk
01:24:09]} {[%emt 00:02:48]} 14. Be3 {[%clk 01:16:41]} {[%emt 00:00:38]} Ba7
{[%clk 01:21:53]} {[%emt 00:02:46]} 15. Be2 {[%clk 01:14:22]} {[%emt 00:02:50]}
Nd5 {[%clk 01:20:02]} {[%emt 00:02:22]} 16. Bc1 {[%clk 01:11:34]} {[%emt
00:03:19]} e5 {[%clk 01:19:46]} {[%emt 00:00:45]} 17. Nc2 {[%clk 01:07:26]}
{[%emt 00:04:38]} Be6 {[%clk 01:14:55]} {[%emt 00:05:21]} 18. O-O {[%clk
01:03:46]} {[%emt 00:04:10]} Nf4 {[%clk 00:53:12]} {[%emt 00:22:12]} 19. Bxf4
{[%clk 00:44:52]} {[%emt 00:19:25]} exf4 {[%clk 00:53:31]} {[%emt 00:00:11]} 20.
Bf3 {[%clk 00:43:15]} {[%emt 00:02:06]} a5 {[%clk 00:53:26]} {[%emt 00:00:34]}
21. b3 {[%clk 00:41:06]} {[%emt 00:02:39]} Rab8 {[%clk 00:41:08]} {[%emt
00:12:48]} 22. Nd4 {[%clk 00:40:06]} {[%emt 00:01:30]} Bxd4 {[%clk 00:35:33]}
{[%emt 00:06:05]} 23. cxd4 {[%clk 00:40:12]} {[%emt 00:00:24]} Kd6 {[%clk
00:33:52]} {[%emt 00:02:10]} 24. Rc1 {[%clk 00:39:40]} {[%emt 00:01:02]} Rdc8
{[%clk 00:31:07]} {[%emt 00:03:16]} 25. h4 {[%clk 00:38:41]} {[%emt 00:01:28]}
b5 {[%clk 00:31:23]} {[%emt 00:00:15]} 26. Rfe1 {[%clk 00:34:31]} {[%emt
00:04:40]} Rxc1 {[%clk 00:26:06]} {[%emt 00:05:46]} 27. Rxc1 {[%clk 00:34:55]}
{[%emt 00:00:06]} Rc8 {[%clk 00:26:04]} {[%emt 00:00:33]} 28. Re1 {[%clk
00:25:04]} {[%emt 00:10:21]} f6 {[%clk 00:18:38]} {[%emt 00:07:55]} 29. Re2
{[%clk 00:17:25]} {[%emt 00:08:09]} Bf5 {[%clk 00:17:53]} {[%emt 00:01:16]} 30.
Be4 {[%clk 00:14:46]} {[%emt 00:03:09]} Bxe4 {[%clk 00:17:37]} {[%emt
00:00:45]} 31. Rxe4 {[%clk 00:15:12]} {[%emt 00:00:04]} Rc1+ {[%clk 00:17:45]}
{[%emt 00:00:22]} 32. Kh2 {[%clk 00:15:37]} {[%emt 00:00:05]} Rc2 {[%clk
00:18:06]} {[%emt 00:00:08]} 33. a4 {[%clk 00:07:57]} {[%emt 00:08:11]} bxa4
{[%clk 00:17:54]} {[%emt 00:00:42]} 34. bxa4 {[%clk 00:08:24]} {[%emt
00:00:03]} Rxf2 {[%clk 00:18:13]} {[%emt 00:00:10]} 35. Kh3 {[%clk 00:08:38]}
{[%emt 00:00:16]} f3 {[%clk 00:18:07]} {[%emt 00:00:36]} 36. g4 {[%clk
00:08:50]} {[%emt 00:00:17]} Ra2 {[%clk 00:16:45]} {[%emt 00:01:52]} 37. Rf4
{[%clk 00:08:36]} {[%emt 00:00:44]} Rxa4 {[%clk 00:16:55]} {[%emt 00:00:20]} 38.
Rf5 {[%clk 00:09:01]} {[%emt 00:00:06]} f2 {[%clk 00:16:50]} {[%emt 00:00:35]}
39. g5 {[%clk 00:07:07]} {[%emt 00:02:24]} fxg5 {[%clk 00:16:35]} {[%emt
00:00:45]} 40. hxg5 {[%clk 00:22:33]} {[%emt 00:00:04]} Rxd4 {[%clk 00:31:51]}
{[%emt 00:00:14]} 41. Rxf2 {[%clk 00:22:59]} {[%emt 00:00:05]} Ke5 {[%emt
00:01:23]} 0-1

[Event "IV Elllobregat Open Chess Tmnt"]
[Site "Sant Boi de Llobregat, Spain"]
[Date "2023.11.30"]
[Round "1.4"]
[White "Shirov, Alexei"]
[Black "Citak, Selim"]
[Result "1/2-1/2"]
[TimeControl "90min/40moves + 15min/end + 30sec from move 1"]
[WhiteFideId "2209390"]
[BlackFideId "6301819"]
[WhiteElo "2668"]
[BlackElo "2350"]

1. e4 {[%clk 01:30:57]} {[%emt 00:00:02]} e5 {[%clk 01:28:08]} {[%emt
00:02:53]} 2. Nf3 {[%clk 01:31:23]} {[%emt 00:00:04]} Nc6 {[%clk 01:28:12]}
{[%emt 00:00:26]} 3. Bc4 {[%clk 01:31:40]} {[%emt 00:00:12]} Bc5 {[%clk
01:28:28]} {[%emt 00:00:14]} 4. d3 {[%clk 01:31:12]} {[%emt 00:00:58]} Nf6
{[%clk 01:28:36]} {[%emt 00:00:21]} 5. Bg5 {[%clk 01:31:29]} {[%emt 00:00:14]}
O-O {[%clk 01:27:32]} {[%emt 00:01:34]} 6. a4 {[%clk 01:24:36]} {[%emt
00:07:23]} h6 {[%clk 01:26:12]} {[%emt 00:01:50]} 7. Bh4 {[%clk 01:25:00]}
{[%emt 00:00:05]} Be7 {[%clk 01:26:29]} {[%emt 00:00:13]} 8. Bg3 {[%clk
01:25:23]} {[%emt 00:00:07]} d6 {[%clk 01:25:55]} {[%emt 00:01:05]} 9. Nbd2
{[%clk 01:21:07]} {[%emt 00:04:46]} Kh8 {[%clk 01:16:37]} {[%emt 00:09:48]} 10.
c3 {[%clk 01:16:45]} {[%emt 00:04:52]} Nh7 {[%clk 01:15:03]} {[%emt 00:02:04]}
11. d4 {[%clk 01:15:37]} {[%emt 00:01:39]} f5 {[%clk 01:13:20]} {[%emt
00:02:13]} 12. exf5 {[%clk 01:08:26]} {[%emt 00:07:40]} e4 {[%clk 01:09:46]}
{[%emt 00:04:04]} 13. Ng1 {[%clk 01:05:27]} {[%emt 00:03:29]} d5 {[%clk
01:06:16]} {[%emt 00:04:00]} 14. Ba2 {[%clk 01:05:48]} {[%emt 00:00:10]} Nf6
{[%clk 00:55:33]} {[%emt 00:11:13]} 15. Nf1 {[%clk 01:00:11]} {[%emt 00:06:06]}
Bxf5 {[%clk 00:48:11]} {[%emt 00:07:52]} 16. Ne3 {[%clk 01:00:36]} {[%emt
00:00:05]} Be6 {[%clk 00:45:32]} {[%emt 00:03:09]} 17. b4 {[%clk 00:56:04]}
{[%emt 00:05:01]} Qd7 {[%clk 00:41:49]} {[%emt 00:04:14]} 18. Ne2 {[%clk
00:55:57]} {[%emt 00:00:36]} Ng4 {[%clk 00:34:39]} {[%emt 00:07:41]} 19. Qd2
{[%clk 00:31:55]} {[%emt 00:24:32]} Nxe3 {[%clk 00:26:29]} {[%emt 00:08:40]} 20.
fxe3 {[%clk 00:31:23]} {[%emt 00:01:02]} Nd8 {[%clk 00:14:50]} {[%emt
00:12:09]} 21. Nf4 {[%clk 00:31:17]} {[%emt 00:00:35]} Bf7 {[%clk 00:15:10]}
{[%emt 00:00:11]} 22. O-O {[%clk 00:29:38]} {[%emt 00:02:09]} c6 {[%clk
00:14:45]} {[%emt 00:00:56]} 23. c4 {[%clk 00:26:39]} {[%emt 00:03:29]} dxc4
{[%clk 00:09:58]} {[%emt 00:05:17]} 24. Qc2 {[%clk 00:26:28]} {[%emt 00:00:41]}
Ne6 {[%clk 00:09:39]} {[%emt 00:00:48]} 25. Qxe4 {[%clk 00:22:56]} {[%emt
00:04:02]} Nxf4 {[%clk 00:09:59]} {[%emt 00:00:10]} 26. Rxf4 {[%clk 00:23:05]}
{[%emt 00:00:20]} Bd5 {[%clk 00:08:53]} {[%emt 00:01:37]} 27. Qc2 {[%clk
00:23:06]} {[%emt 00:00:29]} Rxf4 {[%clk 00:09:04]} {[%emt 00:00:19]} 28. Bxf4
{[%clk 00:23:27]} {[%emt 00:00:09]} Bxb4 {[%clk 00:07:37]} {[%emt 00:01:58]} 29.
Bxc4 {[%clk 00:15:49]} {[%emt 00:08:08]} Rf8 {[%clk 00:07:56]} {[%emt
00:00:11]} 30. Rf1 {[%clk 00:11:55]} {[%emt 00:04:24]} Bd6 {[%clk 00:06:22]}
{[%emt 00:02:03]} 31. Bxd6 {[%clk 00:11:24]} {[%emt 00:01:00]} Rxf1+ {[%clk
00:06:43]} {[%emt 00:00:09]} 32. Bxf1 {[%clk 00:11:14]} {[%emt 00:00:40]} Qxd6
{[%clk 00:07:09]} {[%emt 00:00:05]} 33. Qf5 {[%clk 00:07:27]} {[%emt 00:04:17]}
Qe6 {[%clk 00:07:05]} {[%emt 00:00:33]} 34. Qxe6 {[%clk 00:05:07]} {[%emt
00:02:50]} Bxe6 {[%clk 00:07:32]} {[%emt 00:00:03]} 35. a5 {[%clk 00:05:28]}
{[%emt 00:00:09]} g5 {[%clk 00:06:30]} {[%emt 00:01:33]} 36. e4 {[%clk
00:04:54]} {[%emt 00:01:04]} Kg7 {[%clk 00:06:45]} {[%emt 00:00:15]} 37. Kf2
{[%clk 00:05:17]} {[%emt 00:00:07]} Kf6 {[%clk 00:06:59]} {[%emt 00:00:16]} 38.
Ke3 {[%clk 00:05:42]} {[%emt 00:00:05]} b6 {[%clk 00:06:57]} {[%emt 00:00:33]}
39. axb6 {[%clk 00:04:46]} {[%emt 00:01:26]} axb6 {[%clk 00:07:23]} {[%emt
00:00:04]} 40. g3 {[%clk 00:19:50]} {[%emt 00:00:25]} c5 {[%clk 00:22:11]}
{[%emt 00:00:42]} 41. e5+ {[%clk 00:20:06]} {[%emt 00:00:13]} Ke7 {[%clk
00:22:16]} {[%emt 00:00:26]} 42. Bg2 {[%clk 00:20:29]} {[%emt 00:00:06]} cxd4+
{[%clk 00:22:34]} {[%emt 00:00:13]} 43. Kxd4 {[%clk 00:20:54]} {[%emt
00:00:05]} Kd7 {[%clk 00:19:15]} {[%emt 00:03:49]} 44. h4 {[%clk 00:20:17]}
{[%emt 00:00:35]} 1/2-1/2